{"text_format":"3","workbook":"xlsx","n_sheets":3,"sheets":["Stock","Entradas","Salidas"],"not_rendered":{"macros":1},"read":"whole","date_system":"1900"}

{"sheet":"Stock","index":0,"n_rows":9,"n_cols":10,"rows_kept":9}
[null,null,"INVENTARIO DE PRODUCTOS"]
[]
["Producto","Entradas","Salidas","Stock Actual","Precio de Compra","Precio de Venta","Valor de Inventario","Total de Ventas","Utilidades","Disponibilidad de Producto"]
[null,{"$f":"IFERROR(SUMIFS(Entradas[Cantidad],Entradas[Producto],Stock[Producto]),\"-\")","v":0},{"$f":"IFERROR(SUMIFS(Salidas[Cantidad],Salidas[Producto],Stock[Producto]),\"-\")","v":0},{"$f":"IFERROR(Stock[[#This Row],[Entradas]]-Stock[[#This Row],[Salidas]],\"-\")","v":0},null,null,{"$f":"IFERROR(Stock[[#This Row],[Precio de Compra]]*Stock[[#This Row],[Stock Actual]],\"-\")","v":{"v":0,"d":"$0.00"}},{"$f":"IFERROR(Stock[[#This Row],[Salidas]]*Stock[[#This Row],[Precio de Venta]],\"-\")","v":{"v":0,"d":"$0.00"}},{"$f":"IFERROR(Stock[[#This Row],[Precio de Venta]]*Stock[[#This Row],[Salidas]]-Stock[[#This Row],[Precio de Compra]]*Stock[[#This Row],[Entradas]],\"-\")","v":{"v":0,"d":"$0.00"}},{"$f":"IFERROR(Stock[[#This Row],[Stock Actual]]/Stock[[#This Row],[Entradas]]*100,\"-\")","v":"-"}]
[null,{"$f":"IFERROR(SUMIFS(Entradas[Cantidad],Entradas[Producto],Stock[Producto]),\"-\")","v":0},{"$f":"IFERROR(SUMIFS(Salidas[Cantidad],Salidas[Producto],Stock[Producto]),\"-\")","v":0},{"$f":"IFERROR(Stock[[#This Row],[Entradas]]-Stock[[#This Row],[Salidas]],\"-\")","v":0},null,null,{"$f":"IFERROR(Stock[[#This Row],[Precio de Compra]]*Stock[[#This Row],[Stock Actual]],\"-\")","v":{"v":0,"d":"$0.00"}},{"$f":"IFERROR(Stock[[#This Row],[Salidas]]*Stock[[#This Row],[Precio de Venta]],\"-\")","v":{"v":0,"d":"$0.00"}},{"$f":"IFERROR(Stock[[#This Row],[Precio de Venta]]*Stock[[#This Row],[Salidas]]-Stock[[#This Row],[Precio de Compra]]*Stock[[#This Row],[Entradas]],\"-\")","v":{"v":0,"d":"$0.00"}},{"$f":"IFERROR(Stock[[#This Row],[Stock Actual]]/Stock[[#This Row],[Entradas]]*100,\"-\")","v":"-"}]
[null,{"$f":"IFERROR(SUMIFS(Entradas[Cantidad],Entradas[Producto],Stock[Producto]),\"-\")","v":0},{"$f":"IFERROR(SUMIFS(Salidas[Cantidad],Salidas[Producto],Stock[Producto]),\"-\")","v":0},{"$f":"IFERROR(Stock[[#This Row],[Entradas]]-Stock[[#This Row],[Salidas]],\"-\")","v":0},null,null,{"$f":"IFERROR(Stock[[#This Row],[Precio de Compra]]*Stock[[#This Row],[Stock Actual]],\"-\")","v":{"v":0,"d":"$0.00"}},{"$f":"IFERROR(Stock[[#This Row],[Salidas]]*Stock[[#This Row],[Precio de Venta]],\"-\")","v":{"v":0,"d":"$0.00"}},{"$f":"IFERROR(Stock[[#This Row],[Precio de Venta]]*Stock[[#This Row],[Salidas]]-Stock[[#This Row],[Precio de Compra]]*Stock[[#This Row],[Entradas]],\"-\")","v":{"v":0,"d":"$0.00"}},{"$f":"IFERROR(Stock[[#This Row],[Stock Actual]]/Stock[[#This Row],[Entradas]]*100,\"-\")","v":"-"}]
[null,{"$f":"IFERROR(SUMIFS(Entradas[Cantidad],Entradas[Producto],Stock[Producto]),\"-\")","v":0},{"$f":"IFERROR(SUMIFS(Salidas[Cantidad],Salidas[Producto],Stock[Producto]),\"-\")","v":0},{"$f":"IFERROR(Stock[[#This Row],[Entradas]]-Stock[[#This Row],[Salidas]],\"-\")","v":0},null,null,{"$f":"IFERROR(Stock[[#This Row],[Precio de Compra]]*Stock[[#This Row],[Stock Actual]],\"-\")","v":{"v":0,"d":"$0.00"}},{"$f":"IFERROR(Stock[[#This Row],[Salidas]]*Stock[[#This Row],[Precio de Venta]],\"-\")","v":{"v":0,"d":"$0.00"}},{"$f":"IFERROR(Stock[[#This Row],[Precio de Venta]]*Stock[[#This Row],[Salidas]]-Stock[[#This Row],[Precio de Compra]]*Stock[[#This Row],[Entradas]],\"-\")","v":{"v":0,"d":"$0.00"}},{"$f":"IFERROR(Stock[[#This Row],[Stock Actual]]/Stock[[#This Row],[Entradas]]*100,\"-\")","v":"-"}]
[null,{"$f":"IFERROR(SUMIFS(Entradas[Cantidad],Entradas[Producto],Stock[Producto]),\"-\")","v":0},{"$f":"IFERROR(SUMIFS(Salidas[Cantidad],Salidas[Producto],Stock[Producto]),\"-\")","v":0},{"$f":"IFERROR(Stock[[#This Row],[Entradas]]-Stock[[#This Row],[Salidas]],\"-\")","v":0},null,null,{"$f":"IFERROR(Stock[[#This Row],[Precio de Compra]]*Stock[[#This Row],[Stock Actual]],\"-\")","v":{"v":0,"d":"$0.00"}},{"$f":"IFERROR(Stock[[#This Row],[Salidas]]*Stock[[#This Row],[Precio de Venta]],\"-\")","v":{"v":0,"d":"$0.00"}},{"$f":"IFERROR(Stock[[#This Row],[Precio de Venta]]*Stock[[#This Row],[Salidas]]-Stock[[#This Row],[Precio de Compra]]*Stock[[#This Row],[Entradas]],\"-\")","v":{"v":0,"d":"$0.00"}},{"$f":"IFERROR(Stock[[#This Row],[Stock Actual]]/Stock[[#This Row],[Entradas]]*100,\"-\")","v":"-"}]
[null,{"$f":"IFERROR(SUMIFS(Entradas[Cantidad],Entradas[Producto],Stock[Producto]),\"-\")","v":0},{"$f":"IFERROR(SUMIFS(Salidas[Cantidad],Salidas[Producto],Stock[Producto]),\"-\")","v":0},{"$f":"IFERROR(Stock[[#This Row],[Entradas]]-Stock[[#This Row],[Salidas]],\"-\")","v":0},null,null,{"$f":"IFERROR(Stock[[#This Row],[Precio de Compra]]*Stock[[#This Row],[Stock Actual]],\"-\")","v":{"v":0,"d":"$0.00"}},{"$f":"IFERROR(Stock[[#This Row],[Salidas]]*Stock[[#This Row],[Precio de Venta]],\"-\")","v":{"v":0,"d":"$0.00"}},{"$f":"IFERROR(Stock[[#This Row],[Precio de Venta]]*Stock[[#This Row],[Salidas]]-Stock[[#This Row],[Precio de Compra]]*Stock[[#This Row],[Entradas]],\"-\")","v":{"v":0,"d":"$0.00"}},{"$f":"IFERROR(Stock[[#This Row],[Stock Actual]]/Stock[[#This Row],[Entradas]]*100,\"-\")","v":"-"}]

{"sheet":"Entradas","index":1,"n_rows":3,"n_cols":4,"rows_kept":3}
[null,null,"ENTRADA DE PRODUCTOS"]
[]
["Nro. Documento","Fecha","Producto","Cantidad"]

{"sheet":"Salidas","index":2,"n_rows":10,"n_cols":6,"rows_kept":10}
[null,null,"SALIDA DE PRODUCTOS"]
[]
["Nro. Documento","Fecha","Producto","Cantidad"]
[]
[]
[]
[]
[]
[]
[{"$nulls":5}," "]